Cogmind - Beta 9.6 @@@ ROGUE MODE // 2020.04.27 @ 12:19:10 // Winter2019/RPGLIKE Player: PhenomPhear Result: Destroyed by D-53 Grenadier with Mini Grenade Launcher Performance ------------- Evolutions (0) 0 Regions Visited (2) 400 Robots Destroyed (54) 270 Value Destroyed (801) 801 Prototype IDs (2) 40 Alien Tech Used (0) 0 Bonus (0) 0 TOTAL SCORE: 1511 Bonus ------- None Cogmind --------- Core Integrity 0/850 Matter 369/450 Energy 230/250 System Corruption 0% Temperature Cool (135) Movement Rolling (90) Location -10/Mines Parts ------- > --- POWER (1) -------- Ion Engine > --- PROPULSION (2) --- Armored Wheel Armored Wheel > --- UTILITY (4) ------ Large Matter Pod Improved Terrain Scanner Launcher Guidance Computer Improved Light Armor Plating > --- WEAPON (2) ------- EM Pulse Gun Beam Cannon > --- INVENTORY (3) ---- Large Matter Pod (150) Grenade Launcher Peak State ------------ > --- POWER ------------ Ion Engine > --- PROPULSION ------- Armored Wheel Armored Wheel > --- UTILITY ---------- Large Matter Pod Improved Terrain Scanner Launcher Guidance Computer Improved Light Armor Plating > --- WEAPON ----------- EM Pulse Gun Grenade Launcher > --- INVENTORY -------- Large Matter Pod Beam Cannon [Rating: 17] Favorites ----------- Power Ion Engine Engine Ion Engine Propulsion Light Treads Treads Light Treads Wheel Armored Wheel Utility Improved Terrain Scanner Device Improved Terrain Scanner Storage Large Matter Pod Processor Launcher Guidance Computer Protection Improved Light Armor Plating Weapon Assault Rifle Energy Gun Small Laser Energy Cannon Beam Cannon Ballistic Gun Assault Rifle Launcher Grenade Launcher Build | -11 -10 -10 ------- Run | Scr Mat Min Slots Evolved 5 | 4 . 1 Power . | . . . Propulsion 1 | . . 1 Utility 3 | 3 . . Weapon 1 | 1 . . Parts Attached 26 | 13 11 2 Power 2 | 2 . . Engine 2 | 2 . . Core . | . . . Reactor . | . . . Propulsion 5 | 3 1 1 Treads 3 | 3 . . Leg . | . . . Wheel 2 | . 1 1 Hover . | . . . Flight . | . . . Utility 7 | 5 2 . Device 2 | 2 . . Storage 2 | 1 1 . Processor 1 | 1 . . Hackware . | . . . Protection 2 | 1 1 . Artifact . | . . . Weapon 12 | 3 8 1 Energy Gun 4 | 1 3 . Energy Cannon 2 | . 1 1 Ballistic Gun 5 | 2 3 . Ballistic Cannon . | . . . Launcher 1 | . 1 . Special Weapon . | . . . Impact Weapon . | . . . Slashing Weapon . | . . . Piercing Weapon . | . . . Special Melee Weapon . | . . . Unidentified Prototypes . | . . . Parts Lost . | . . . Power . | . . . Propulsion . | . . . Utility . | . . . Weapon . | . . . Highest Loss Streak . | . . . Average Slot Usage (%) 99 | . 99 100 Engine 11 | . 12 11 Treads 2 | . 2 . Wheel 9 | . 9 21 Device 11 | . 12 11 Storage 11 | . 12 11 Processor 11 | . 12 11 Protection 11 | . 11 11 Energy Gun 6 | . 6 11 Ballistic Gun 6 | . 6 . Launcher 11 | . 11 9 Naked Turns . | . . . Heaviest Build 18 | 13 18 17 Greatest Support 24 | 20 20 24 Greatest Overweight (x) 2 | 2 1 1 Average Overweight (x) . | . . . Largest Inventory Capacity 3 | . 3 3 Average Capacity . | . 2 3 Most Carried 3 | . 3 3 Average Carried . | . 2 2 Final Capacity 3 | . 3 3 Final Carried 3 | . 3 2 Class Distribution -------------------- 76% | Scavenger-Mutant 23% | Mutant Dominant Class ---------------- Mutant | -10/Materials Mutant | -10/Mines Resources | -11 -10 -10 ----------- Run | Scr Mat Min Matter Collected 1280 | 423 810 47 Remotely . | . . . Salvage Created 659 | 107 495 57 Parts 54 | 2 44 8 Haulers Intercepted 2 | . 2 . Recyclers Shooed 3 | . 1 2 Parts Field Recycled . | . . . Retrieved Matter . | . . . Parts Self-Destructed . | . . . Prevented . | . . . Kills | -11 -10 -10 ------- Run | Scr Mat Min Combat Hostiles Destroyed 39 | 12 16 11 Guns 14 | 12 1 1 Cannons 1 | . . 1 AOE 24 | . 15 9 Classes Destroyed 10 | 2 6 2 Worker 5 | . 4 1 Builder 1 | . . 1 Tunneler 3 | 1 2 . Hauler 2 | . 2 . Recycler 1 | . 1 . Watcher 3 | . 3 . Swarmer 9 | . 6 3 Grunt 10 | . 10 . Demolisher 1 | . . 1 Assembled 19 | 12 . 7 Best Kill Streak 14 | 5 14 7 Combat Bots Only 9 | 5 9 7 Max Kills in Single Turn 5 | 1 3 5 Gunslinging . | . . . Exploded 5 | . 2 5 Melee . | . . . Uniques/NPCs Destroyed . | . . . Combat | -11 -10 -10 -------- Run | Scr Mat Min Damage Taken 1595 | 703 358 534 Core 1247 | 592 251 404 Absorbed by Shields . | . . . Redirected to Core 938 | 387 188 363 Core Remaining (%) 45 | 45 . . Volleys Fired 142 | 41 89 12 Largest 2 | 2 1 2 Hottest 100 | 60 60 100 Shots Fired 188 | 82 89 17 Gun 129 | 82 39 8 Cannon 7 | . 2 5 Launcher 52 | . 48 4 Special . | . . . Kinetic 46 | 41 5 . Thermal 48 | 41 2 5 Explosive 52 | . 48 4 Electromagnetic 42 | . 34 8 Robot Hit Streak 10 | 7 10 4 Robot Miss Streak 6 | 6 3 3 Penetration Max . | . . . Secondary Targets 5 | 5 . . Max Gunslinging Chain 1 | 1 . . Shots Hit Robots 68 | 40 22 6 Core Hits 93 | 24 47 22 Critical Hits . | . . . Critical Kills . | . . . Critical Parts Destroyed . | . . . Melee Attacks . | . . . Impact . | . . . Slashing . | . . . Piercing . | . . . Sneak Attacks . | . . . Combat Hostiles . | . . . Follow-up Attacks . | . . . Damage Inflicted 3167 | 453 1824 890 Guns 668 | 453 180 35 Cannons 36 | . . 36 Explosions 2462 | . 1643 819 Melee . | . . . Ramming 1 | . 1 . Kinetic 304 | 249 55 . Thermal 309 | 204 69 36 Explosive 2393 | . 1574 819 Electromagnetic 160 | . 125 35 Impact . | . . . Slashing . | . . . Piercing . | . . . Highest Corruption . | . . . Average Corruption . | . . . Corruption Purged . | . . . Overload Shots . | . . . Overflow Damage 55 | . 27 28 Projectiles . | . . . Explosions 55 | . 27 28 Melee . | . . . Knockbacks . | . . . Impact . | . . . Kinetic . | . . . Secondary . | . . . Self-Inflicted Damage 157 | . 115 42 Shots 5 | . 4 1 Rammed 3 | . 3 . Targets Rammed 3 | . 3 . Kicked . | . . . Crushed . | . . . Highest Temperature 135 | . 24 135 Average Temperature 57 | . 13 72 Received Heat Transfer 102 | . 102 . Siege Activations . | . . . Robots Corrupted . | . . . Combat Hostiles . | . . . Parts Fried . | . . . Impact Corruptions . | . . . Robots Melted . | . . . Combat Hostiles . | . . . Parts Melted . | . . . Heat Transferred 599 | 475 50 74 Parts Sabotaged . | . . . Parts Stolen . | . . . Parts Stripped . | . . . Power Chain Reactions 1 | . 1 . Missiles Intercepted . | . . . Alert | -11 -10 -10 ------- Run | Scr Mat Min Peak Influence 351 | 45 351 236 Average Influence 66 | 2 205 198 Maximum Alert Level 1 | . 1 1 Low Security (%) 77 | 100 30 13 Level 1 22 | . 69 86 Level 2 . | . . . Level 3 . | . . . Level 4 . | . . . Level 5 . | . . . High Security . | . . . Max Security . | . . . Squads Dispatched 1 | . 1 . Investigation 1 | . 1 . Extermination . | . . . Reinforcement . | . . . Assault . | . . . Garrison . | . . . Intercept . | . . . Construction Impeded . | . . . Haulers Reinforced . | . . . Stealth | -11 -10 -10 --------- Run | Scr Mat Min Distress Signals 2 | . 2 . Communications Jammed . | . . . Distress Signals . | . . . Times Spotted 56 | 12 22 22 Peak Tracking Total 20 | 3 6 20 Tactical Retreats 2 | . . 2 Traps | -11 -10 -10 ------- Run | Scr Mat Min Traps Triggered 1 | . 1 . Indirectly . | . . . Trap Hack Attempts . | . . . Triggered . | . . . Disarmed . | . . . Reprogrammed . | . . . Reused . | . . . Traps Extracted . | . . . Installed . | . . . Triggered . | . . . Machines | -11 -10 -10 ---------- Run | Scr Mat Min Machines Disabled 21 | . 21 . Max in Single Turn 1 | . 1 . Machines Sabotaged . | . . . Garrisons Compromised . | . . . Overloaded Fab Kills . | . . . Fab Network Shutdowns . | . . . Hacking | -11 -10 -10 --------- Run | Scr Mat Min Machines Accessed 6 | . 6 . Terminals 3 | . 3 . Fabricators . | . . . Repair Stations 1 | . 1 . Recycling Units 2 | . 2 . Scanalyzers . | . . . Garrison Access . | . . . Total Hacks 17 | . 17 . Successful 14 | . 14 . Failed 3 | . 3 . Catastrophic 1 | . 1 . Database Lockouts . | . . . Manual 1 | . 1 . Terminals 4 | . 4 . Fabricators . | . . . Repair Stations 5 | . 5 . Recycling Units 8 | . 8 . Scanalyzers . | . . . Garrison Access . | . . . Terminal Hacks 3 | . 3 . Prototype ID Bank 1 | . 1 . Alert Level 1 | . 1 . Zone Layout 1 | . 1 . Fabricator Hacks . | . . . Repair Station Hacks 4 | . 4 . Scan Component 3 | . 3 . Repair 1 | . 1 . Recycling Unit Hacks 6 | . 6 . Recycle Component 2 | . 2 . Retrieve Matter 2 | . 2 . Retrieve Components 2 | . 2 . Scanalyzer . | . . . Garrison Access Hacks . | . . . Unauthorized Hacks 1 | . 1 . Terminals . | . . . Fabricators . | . . . Repair Stations . | . . . Recycling Units 1 | . 1 . Reject 1 | . 1 . Scanalyzers . | . . . Garrison Access . | . . . Data Cores Recovered . | . . . Used . | . . . Hacking Detections 4 | . 4 . Full Trace Events 1 | . 1 . Feedback Events . | . . . Feedback Blocked . | . . . Robot Schematics Acquired . | . . . Robots Built . | . . . Matter . | . . . Time . | . . . Total Robot Build Rating . | . . . Part Schematics Acquired . | . . . Parts Built . | . . . Matter . | . . . Time . | . . . Total Part Build Rating . | . . . Parts Repaired 1 | . 1 . Time 38 | . 38 . Parts Recycled 2 | . 2 . Recycled Matter . | . . . Retrieved Matter . | . . . Retrieved Components 5 | . 5 . Parts Scanalyzed . | . . . Part Schematics Acquired . | . . . Parts Damaged . | . . . Bothacking | -11 -10 -10 ------------ Run | Scr Mat Min Used RIF Installer . | . . . Robots Hacked . | . . . Non-combat . | . . . Combat . | . . . Robot Hacks Applied . | . . . Relay Couplers Released . | . . . Robots Rewired . | . . . Allies Hacked . | . . . Hacks Repelled . | . . . Allies | -11 -10 -10 -------- Run | Scr Mat Min Total Allies . | . . . Largest Group . | . . . Highest-Rated Group . | . . . Highest-Rated Ally . | . . . Total Orders . | . . . Ally Attacks . | . . . Total Damage . | . . . Kills . | . . . Allies Corrupted . | . . . Allies Melted 1 | . . 1 Intel | -11 -10 -10 ------- Run | Scr Mat Min Robot Analysis Total . | . . . Derelict Logs Recovered 1 | . . 1 Drone Launches . | . . . Drone Recoveries . | . . . Exploration | -11 -10 -10 ------------- Run | Scr Mat Min Turns Passed 5217 | 3568 1532 117 Spaces Moved 1806 | 575 1142 89 Core 7 | 7 . . Treads 755 | 568 187 . Legs . | . . . Wheels 1044 | . 955 89 Hover . | . . . Flight . | . . . Fastest Speed 50 | 50 100 90 Average Speed 124 | 159 109 91 Slowest Speed 160 | 160 160 100 Overloaded Moves . | . . . Propulsion Burnouts . | . . . Robots Hopped . | . . . Cave-ins Triggered . | . . . Exploration Rate (%) 63 | 64 96 30 Regions Visited 2 Branch Regions 1 Pre-discovered Areas . | . . . Known Exits Taken . | . . . Unknown Exits Taken 2 | 1 1 . Scrap Searched . | . . . Spaces Dug 40 | . 23 17 Terrain Destroyed 240 | . 213 27 Melee . | . . . Projectile . | . . . AOE 240 | . 213 27 Actions | -11 -10 -10 --------- Run | Scr Mat Min Total 4582 | 3142 1333 107 Wait 2565 | 2497 65 3 Move 1804 | 574 1141 89 Hop . | . . . Pick Up 6 | . 6 . Fast Attach 17 | 10 6 1 Attach . | . . . Detach 1 | . 1 . Swap 9 | 3 5 1 Drop 15 | 4 10 1 Fire 142 | 41 89 12 Melee . | . . . Ram 3 | . 3 . Kick . | . . . Crush . | . . . Escape Stasis . | . . . Rewire . | . . . Trap . | . . . Miscellaneous 20 | 13 7 . Route ------- -11/Scrapyard -10/Materials (discovered 5 exits: [*Mat x3] / [*Min x2]) -10/Mines (discovered 1 exit: [*Mat]) History --------- Turn | Location | Event 1 | -11/Scrapyard | Upgraded with Utility slot (x3) 1 | -11/Scrapyard | Upgraded with Weapon slot (x1) 31 | -11/Scrapyard | Discovered new exit (range 15) 2579 | -11/Scrapyard | Assembled infested the area 2855 | -11/Scrapyard | Core integrity fell below 50% 3569 | -11/Scrapyard | Entered Materials 3570 | -10/Materials | Build established: Scavenger-Mutant 3820 | -10/Materials | Discovered new exit (range 7) 3836 | -10/Materials | Discovered new exit (range 15) 3883 | -10/Materials | Discovered new exit (range 16) 3894 | -10/Materials | Reached level 2 3921 | -10/Materials | Destroyed 9 combat bots 4271 | -10/Materials | Discovered new exit (range 9) 4335 | -10/Materials | Build established: Mutant 4585 | -10/Materials | Discovered new exit (range 11) 4668 | -10/Materials | Repaired Imp. Light Armor Plating 4883 | -10/Materials | Reached level 3 5101 | -10/Materials | Entered Mines 5112 | -10/Mines | Upgraded with Propulsion slot (x1) 5114 | -10/Mines | Discovered new exit (range 8) 5158 | -10/Mines | Assembled infested the area 5163 | -10/Mines | Assisted by a Guerilla fighting off Assembled 5199 | -10/Mines | Destroyed 7 combat bots 5204 | -10/Mines | Core integrity fell below 20% 5206 | -10/Mines | Reached level 4 5218 | -10/Mines | Destroyed by D-53 Grenadier with Mini Grenade Launcher Last Messages --------------- 05165_ as-00865 destroyed. 05165_ Destroyed Asb. F-torch. 05165_ as-83171 destroyed. 05166_ as-39637 suffers critical hit. 05166_ as-39637 destroyed. 05171_ QD-GSF(h) critical meltdown. 05174_ Destroyed Asb. Hover Unit. 05174_ as-44178 destroyed. 05176_ Destroyed Asb. Hover Unit. 05177_ as-22735 destroyed. 05177_ as-82252 destroyed. 05178_ as-15142 destroyed. 05179_ as-51868 destroyed. 05179_ as-53870 destroyed. 05179_ as-44752 destroyed. 05179_ as-96944 destroyed. 05188_ Acquired 30 matter. 05206_ Reached level 4. 05206_ D-53 Grenadier destroyed. 05210_ U-05 Engineer lays Concrete. Map ----- +----------------------------------------------------+ | ?????????????????????????????????????????????????? | | ?????????????????????????????????????????????????? | | ?????????????????????????????????????????????????? | | ?????????????????????? ??????????????????????????? | | ?????????????????? ? ??????????????????????????? | | ??????????????????# ??????????????????????????? | | ??????????????????# ??????????????????????????? | | ??????????????????# ???????????????? ???????? | | ???????????????#??# ??????????????? ??????? | | ??????????????????# ?????????????? ??????? | | ??????????????????# ???#???????#?# ?????? | | ???????????????#??? ???????????## ?????? | | ???????????????????? ??????????# ?????? | | ?????????????????????# ?????#??## ?????? | | ?????????????????????# ###???### ??????? | | ???????????????????#?# ##### #???????????? | | ?????????????????????# $ #???????????? | | ?????????????????????###dt#### #???????????? | | ???????????????????????# #??# ##???????????? | | ???????????#????######## #??## #????????????? | | ???????????????## ##??## $ #????????????? | | ???????????????# ###?# #??????? ????? | | ???????????????# ## #????????????? | | ?????????#?????## ## #????????????? | | ?????#?### ?????## ## #??????????? # | | ???? #?# ?????## @ ## #????????? ? | | ???? #?# ??????### ## % #???????? ??? | | ???? #?? ???????# ## #???? ? #???? | | ???? #???# ??????## # ## % #??? | | ???? #????# ??????## ## % #???? | | ?### #???## ####### % #??? | | ## #???# u * % #??? | | ##?## ## % ### % #?? | | #??# ????# ##### ######## ## #? | | ##??#????# #???####??????### ##? #? | | ##??#???### #???#?#??????????# ###??? ? ##? | | ##???????# #??#????????##????##???#??##????? | | ## ##????????# ###????????????????#???#??????????? | | ?# #????????## #?????????????????????????????????? | | ?# #???#???#?# #?????????????????????????????????? | | ?# ###???????# #?????????????????????????????????? | | ?# #?####### ###???????????????????????????????? | | ?### #?# * ##??????????????????????????????? | | ???# #?# < = #????????????????????????#?????? | | ???# ### * ! #????????#?????????????????????? | | ???# [* #?????#????????????????????????? | | ???##### #??????????????????????????????? | | ????#??# ##??????????????????????????????? | | ???????#### #???????????????????????????????? | | ??????????########???????????????????????????????? | +----------------------------------------------------+ Best States ------------- Heat Dissipation 31 Energy Generation 10 Energy Capacity 250 Matter Stores 450 Matter Capacity 450 Sight Range 16 Terrain Scan Range 16 Terrain Scan Density 10 Armor Coverage 150 Evasion (%) 42 Launcher Accuracy 20 Recoil Reduction 1 Item Schematics ----------------- None Robot Schematics ------------------ None Fabricated ------------ Nothing Alien Tech Used ----------------- None Achievements -------------- None Challenges ------------ None RPGLIKE | -11 -10 -10 --------- Run | Scr Mat Min Levels Raised 3 | . 2 1 XP Earned 7500 | 3000 3500 1000 XP Spent 5975 | 2975 1500 1500 Upgrades 16 | 6 3 7 Propulsion Slot 1 | . . 1 Utility Slot 3 | 3 . . Weapon Slot 1 | 1 . . Core Integrity 5 | 1 . 4 Heat Dissipation 1 | 1 . . Inventory Capacity 3 | . 3 . EX Damage % 2 | . . 2 Protomatter Created 216 | 79 124 13 Integrity Restored 363 | 237 126 . Core 363 | 237 126 . Protomatter Decayed 24 | 5 . 19 Game ------ Seed GravitonFlakFemtoactuators Manual? 0 Play Time 00:24:34 Cumulative 1026.2 hours Start 2020.04.27 @ 11:37:58 End 2020.04.27 @ 12:19:10 Sessions 1 Manual Loads 0 Difficulty Rogue Special Mode Winter2019/RPGLIKE Game No. 620 Rogue 620 Adventurer 0 Explorer 0 Win Type - Total 18 Types 10/1/4/3/0/0/0 Lore% 89 Gallery% 94 Achievement% 80 Wizard Run 0 Options --------- ASCII 0 Keyboard 0 Movement Mouse Keybinds 0 Fullscreen 2 Font 24/Crisp Map View 76x50 Tactical HUD 1 Map Filters NONE Filters NONE Steam 1 RUN: 6daae664-dad9-4d34-a609-eca20f25edca